[Event "Early-Titled-Tuesday-Blitz-June-18-2024"]
[Site "Chess.com"]
[Date "2024.06.18"]
[Round "4"]
[White "Journey_to_GrandMaster_YT"]
[Black "David_ATM"]
[Result "1-0"]
[WhiteElo "2640"]
[BlackElo "2418"]
[TimeControl "180+1"]
[EndTime "8:42:35 PDT"]
[Termination "Journey_to_GrandMaster_YT won on time"]

1. Nf3 {[%clk 0:03:00.9]} 1... d5 {[%clk 0:02:59.9]} 2. c4 {[%clk 0:03:01.1]}
2... c6 {[%clk 0:03:00.8]} 3. b3 {[%clk 0:03:00.4]} 3... Nf6 {[%clk 0:03:01.4]}
4. Bb2 {[%clk 0:03:00.8]} 4... Bf5 {[%clk 0:03:01.7]} 5. e3 {[%clk 0:03:00.8]}
5... e6 {[%clk 0:03:02.2]} 6. Nc3 {[%clk 0:03:00.8]} 6... Nbd7 {[%clk
0:03:02.4]} 7. d4 {[%clk 0:03:00.5]} 7... Be7 {[%clk 0:03:02.1]} 8. Bd3 {[%clk
0:03:01]} 8... Bxd3 {[%clk 0:03:01.8]} 9. Qxd3 {[%clk 0:03:01.9]} 9... O-O
{[%clk 0:03:02.3]} 10. O-O {[%clk 0:03:02.3]} 10... Rc8 {[%clk 0:02:59]} 11.
Rad1 {[%clk 0:02:58.9]} 11... Qa5 {[%clk 0:02:57.7]} 12. a3 {[%clk 0:02:56.9]}
12... Rfe8 {[%clk 0:02:47.3]} 13. Rfe1 {[%clk 0:02:55]} 13... h6 {[%clk
0:02:46.2]} 14. b4 {[%clk 0:02:53.4]} 14... Qc7 {[%clk 0:02:45.8]} 15. e4 {[%clk
0:02:53.2]} 15... Nxe4 {[%clk 0:02:45.1]} 16. Nxe4 {[%clk 0:02:53.8]} 16... dxe4
{[%clk 0:02:46]} 17. Rxe4 {[%clk 0:02:52.1]} 17... Nf6 {[%clk 0:02:40.9]} 18.
Re2 {[%clk 0:02:48.4]} 18... Nd7 {[%clk 0:02:39.8]} 19. Rde1 {[%clk 0:02:39.9]}
19... Bf6 {[%clk 0:02:38.7]} 20. Ba1 {[%clk 0:02:23]} 20... Red8 {[%clk
0:02:38.2]} 21. Qe4 {[%clk 0:02:20.7]} 21... Nf8 {[%clk 0:02:36.7]} 22. h3
{[%clk 0:02:13]} 22... Ng6 {[%clk 0:02:35.8]} 23. g3 {[%clk 0:01:54.2]} 23... a5
{[%clk 0:02:31.9]} 24. h4 {[%clk 0:01:51.5]} 24... axb4 {[%clk 0:02:27.1]} 25.
axb4 {[%clk 0:01:52.4]} 25... Ra8 {[%clk 0:02:27.3]} 26. h5 {[%clk 0:01:51.5]}
26... Nf8 {[%clk 0:02:22.5]} 27. Bb2 {[%clk 0:01:47.7]} 27... Nh7 {[%clk
0:02:21.7]} 28. Bc1 {[%clk 0:01:45.7]} 28... Ra4 {[%clk 0:02:15.5]} 29. Bf4
{[%clk 0:01:36.4]} 29... Qb6 {[%clk 0:02:04.2]} 30. b5 {[%clk 0:01:31.6]} 30...
Rxc4 {[%clk 0:02:00.3]} 31. bxc6 {[%clk 0:01:17.6]} 31... Qxc6 {[%clk
0:01:58.6]} 32. Qxc6 {[%clk 0:00:58.4]} 32... bxc6 {[%clk 0:01:59.5]} 33. Ne5
{[%clk 0:00:57]} 33... Bxe5 {[%clk 0:01:55]} 34. dxe5 {[%clk 0:00:56.1]} 34...
Ng5 {[%clk 0:01:24.4]} 35. Kg2 {[%clk 0:00:49]} 35... Rd3 {[%clk 0:01:22.6]} 36.
Ra1 {[%clk 0:00:38.3]} 36... Rd8 {[%clk 0:01:02.3]} 37. Ra7 {[%clk 0:00:34.9]}
37... Rc8 {[%clk 0:01:00.9]} 38. Rb2 {[%clk 0:00:33.1]} 38... Ne4 {[%clk
0:00:42.5]} 39. Rbb7 {[%clk 0:00:31.5]} 39... Rf8 {[%clk 0:00:42.4]} 40. Be3
{[%clk 0:00:17.8]} 40... Nc3 {[%clk 0:00:41]} 41. Bb6 {[%clk 0:00:14.3]} 41...
Nb5 {[%clk 0:00:40.5]} 42. Ra6 {[%clk 0:00:12.5]} 42... Rc2 {[%clk 0:00:19.4]}
43. Bc7 {[%clk 0:00:12.1]} 43... Nxc7 {[%clk 0:00:18.4]} 44. Rxc7 {[%clk
0:00:12.4]} 44... Re2 {[%clk 0:00:17.5]} 45. Ra5 {[%clk 0:00:11.4]} 45... Rc2
{[%clk 0:00:17.1]} 46. Kf3 {[%clk 0:00:10.1]} 46... Rb8 {[%clk 0:00:16]} 47.
Raa7 {[%clk 0:00:10.3]} 47... Rb3+ {[%clk 0:00:16.1]} 48. Kg2 {[%clk 0:00:10.6]}
48... Rbb2 {[%clk 0:00:08.9]} 49. Rxf7 {[%clk 0:00:11.1]} 49... Kh8 {[%clk
0:00:09.5]} 50. Rf8+ {[%clk 0:00:10.9]} 50... Kh7 {[%clk 0:00:09.6]} 51. Rff7
{[%clk 0:00:11.5]} 51... Kh8 {[%clk 0:00:09.8]} 52. Rae7 {[%clk 0:00:09]} 52...
c5 {[%clk 0:00:09.5]} 53. Rxe6 {[%clk 0:00:09.2]} 53... c4 {[%clk 0:00:09.9]}
54. Re8+ {[%clk 0:00:09.7]} 54... Kh7 {[%clk 0:00:10.1]} 55. Ree7 {[%clk
0:00:10.6]} 55... Kh8 {[%clk 0:00:09.8]} 56. Rc7 {[%clk 0:00:10.2]} 56... c3
{[%clk 0:00:09.9]} 57. Kh3 {[%clk 0:00:08.2]} 57... Rxf2 {[%clk 0:00:08.6]} 58.
Rxf2 {[%clk 0:00:08]} 58... Rxf2 {[%clk 0:00:08.1]} 59. Rxc3 {[%clk 0:00:08.6]}
59... Re2 {[%clk 0:00:08.5]} 60. Rc8+ {[%clk 0:00:08.9]} 60... Kh7 {[%clk
0:00:08.8]} 61. Re8 {[%clk 0:00:09.3]} 61... Re4 {[%clk 0:00:02.8]} 62. Kg2
{[%clk 0:00:09.4]} 62... g6 {[%clk 0:00:03.5]} 63. Re7+ {[%clk 0:00:08.6]} 63...
Kg8 {[%clk 0:00:03.6]} 64. hxg6 {[%clk 0:00:08.9]} 64... Kf8 {[%clk 0:00:04.3]}
65. Rf7+ {[%clk 0:00:08.8]} 65... Ke8 {[%clk 0:00:02.6]} 66. Rf5 {[%clk
0:00:07.1]} 66... Rg4 {[%clk 0:00:01.6]} 67. Rf6 {[%clk 0:00:07.3]} 67... Rg5
{[%clk 0:00:01.2]} 68. Re6+ {[%clk 0:00:03.9]} 1-0

[Event "Early-Titled-Tuesday-Blitz-June-18-2024"]
[Site "Chess.com"]
[Date "2024.06.18"]
[Round "4"]
[White "sirinbaba33"]
[Black "Smiechu"]
[Result "1/2-1/2"]
[WhiteElo "2213"]
[BlackElo "2351"]
[TimeControl "180+1"]
[EndTime "8:42:41 PDT"]
[Termination "Game drawn by repetition"]

1. e4 {[%clk 0:03:00.9]} 1... c5 {[%clk 0:02:56.4]} 2. Nf3 {[%clk 0:03:00.8]}
2... g6 {[%clk 0:02:57]} 3. d4 {[%clk 0:02:58.3]} 3... cxd4 {[%clk 0:02:57.9]}
4. Nxd4 {[%clk 0:02:59]} 4... Nc6 {[%clk 0:02:58.3]} 5. c4 {[%clk 0:02:58.4]}
5... Nf6 {[%clk 0:02:58.1]} 6. Nc3 {[%clk 0:02:56.7]} 6... Nxd4 {[%clk
0:02:58.5]} 7. Qxd4 {[%clk 0:02:56.4]} 7... d6 {[%clk 0:02:59.1]} 8. Be3 {[%clk
0:02:56.4]} 8... Bg7 {[%clk 0:02:59.7]} 9. Rd1 {[%clk 0:02:53.4]} 9... O-O
{[%clk 0:03:00]} 10. Qd2 {[%clk 0:02:52.7]} 10... Ng4 {[%clk 0:02:52.1]} 11. Bf4
{[%clk 0:02:51.6]} 11... Be6 {[%clk 0:02:47.9]} 12. f3 {[%clk 0:02:37]} 12...
Nf6 {[%clk 0:02:45.3]} 13. b3 {[%clk 0:02:26.9]} 13... Qa5 {[%clk 0:02:44.6]}
14. Nd5 {[%clk 0:02:26.2]} 14... Qxd2+ {[%clk 0:02:43.9]} 15. Rxd2 {[%clk
0:02:25.4]} 15... Bxd5 {[%clk 0:02:43.3]} 16. cxd5 {[%clk 0:02:15.6]} 16... Rfc8
{[%clk 0:02:42.5]} 17. Bc4 {[%clk 0:02:12]} 17... Nd7 {[%clk 0:02:38.1]} 18. Be3
{[%clk 0:02:07.4]} 18... Bc3 {[%clk 0:02:35.9]} 19. Ke2 {[%clk 0:02:04.1]} 19...
Bxd2 {[%clk 0:02:35.7]} 20. Kxd2 {[%clk 0:02:05]} 20... a6 {[%clk 0:02:35.8]}
21. Bd4 {[%clk 0:02:04.4]} 21... b5 {[%clk 0:02:35.3]} 22. Bd3 {[%clk
0:02:04.4]} 22... Nc5 {[%clk 0:02:33.6]} 23. Bc2 {[%clk 0:02:01.2]} 23... a5
{[%clk 0:02:32.3]} 24. a3 {[%clk 0:02:01.4]} 24... b4 {[%clk 0:02:28.5]} 25. a4
{[%clk 0:02:01.1]} 25... Rc7 {[%clk 0:02:19.8]} 26. h4 {[%clk 0:01:42.9]} 26...
h5 {[%clk 0:02:15.8]} 27. Rb1 {[%clk 0:01:36.9]} 27... Rac8 {[%clk 0:02:14.6]}
28. Rb2 {[%clk 0:01:35.4]} 28... Nd7 {[%clk 0:02:02.6]} 29. Bd3 {[%clk
0:01:29.6]} 29... Ne5 {[%clk 0:02:00.7]} 30. Ba6 {[%clk 0:01:26.2]} 30... Ra8
{[%clk 0:01:58.7]} 31. Bxe5 {[%clk 0:01:26.3]} 31... Rxa6 {[%clk 0:01:56.1]} 32.
Bd4 {[%clk 0:01:24.7]} 32... Ra8 {[%clk 0:01:55.9]} 33. Be3 {[%clk 0:01:14.6]}
33... Rac8 {[%clk 0:01:55.7]} 34. Kd1 {[%clk 0:01:14.9]} 34... Rc3 {[%clk
0:01:54.7]} 35. Bd2 {[%clk 0:01:14.9]} 35... R3c7 {[%clk 0:01:49.5]} 36. Be3
{[%clk 0:01:13.4]} 36... e6 {[%clk 0:01:46.2]} 37. dxe6 {[%clk 0:01:05.8]} 37...
fxe6 {[%clk 0:01:47.1]} 38. Bb6 {[%clk 0:00:53.1]} 38... Rc1+ {[%clk 0:01:46]}
39. Kd2 {[%clk 0:00:53.7]} 39... R8c6 {[%clk 0:01:37.2]} 40. Bxa5 {[%clk
0:00:51.2]} 40... Rg1 {[%clk 0:01:36.7]} 41. Ke3 {[%clk 0:00:47.2]} 41... Rc3+
{[%clk 0:01:36.1]} 42. Kf2 {[%clk 0:00:43.4]} 42... Rgc1 {[%clk 0:01:30.1]} 43.
Bxb4 {[%clk 0:00:41.3]} 43... R1c2+ {[%clk 0:01:29.8]} 44. Rxc2 {[%clk
0:00:41.4]} 44... Rxc2+ {[%clk 0:01:30.7]} 45. Kg3 {[%clk 0:00:40.1]} 45... d5
{[%clk 0:01:23.3]} 46. exd5 {[%clk 0:00:35.5]} 46... exd5 {[%clk 0:01:24.2]} 47.
a5 {[%clk 0:00:34.1]} 47... d4 {[%clk 0:01:17.3]} 48. Kf4 {[%clk 0:00:30.8]}
48... d3 {[%clk 0:01:14.5]} 49. Ke3 {[%clk 0:00:30.3]} 49... d2 {[%clk
0:01:08.7]} 50. Bxd2 {[%clk 0:00:28.7]} 50... Kf7 {[%clk 0:01:07.6]} 51. b4
{[%clk 0:00:25.1]} 51... Ke6 {[%clk 0:01:01.3]} 52. b5 {[%clk 0:00:24.1]} 52...
Kd5 {[%clk 0:01:00.2]} 53. a6 {[%clk 0:00:22]} 53... Kc5 {[%clk 0:00:57.5]} 54.
a7 {[%clk 0:00:18.8]} 54... Ra2 {[%clk 0:00:57.4]} 55. Kf4 {[%clk 0:00:19.5]}
55... Kxb5 {[%clk 0:00:51.8]} 56. Be3 {[%clk 0:00:20]} 56... Kc6 {[%clk
0:00:48.6]} 57. g3 {[%clk 0:00:20.2]} 57... Kb7 {[%clk 0:00:48.2]} 58. Kg5
{[%clk 0:00:20.4]} 58... Ra6 {[%clk 0:00:48.3]} 59. Bd4 {[%clk 0:00:19.7]} 59...
Kc7 {[%clk 0:00:47.5]} 60. f4 {[%clk 0:00:19.5]} 60... Kd7 {[%clk 0:00:47.6]}
61. f5 {[%clk 0:00:19.5]} 61... gxf5 {[%clk 0:00:47.8]} 62. Kxh5 {[%clk
0:00:20]} 62... Ke6 {[%clk 0:00:47.7]} 63. Kg5 {[%clk 0:00:20.1]} 63... Ra5
{[%clk 0:00:44]} 64. h5 {[%clk 0:00:17]} 64... Kf7 {[%clk 0:00:44.1]} 65. h6
{[%clk 0:00:16.8]} 65... Kg8 {[%clk 0:00:42.7]} 66. Kg6 {[%clk 0:00:16.7]} 66...
Ra6+ {[%clk 0:00:43]} 67. Bf6 {[%clk 0:00:16.8]} 67... Rxa7 {[%clk 0:00:37]} 68.
Kxf5 {[%clk 0:00:11.3]} 68... Kh7 {[%clk 0:00:35.2]} 69. Bg5 {[%clk 0:00:08.3]}
69... Ra5+ {[%clk 0:00:34.9]} 70. Kg4 {[%clk 0:00:08.2]} 70... Kg6 {[%clk
0:00:35.1]} 71. Bf4 {[%clk 0:00:08.6]} 71... Ra4 {[%clk 0:00:34.2]} 72. Kh3
{[%clk 0:00:08.6]} 72... Rb4 {[%clk 0:00:33.7]} 73. Kg4 {[%clk 0:00:08.9]} 73...
Ra4 {[%clk 0:00:34]} 74. Kf3 {[%clk 0:00:09.5]} 74... Rb4 {[%clk 0:00:34.2]} 75.
Ke3 {[%clk 0:00:10]} 75... Ra4 {[%clk 0:00:34.3]} 76. g4 {[%clk 0:00:09.8]}
76... Ra3+ {[%clk 0:00:32.5]} 77. Ke4 {[%clk 0:00:09.8]} 77... Ra4+ {[%clk
0:00:32.6]} 78. Kf3 {[%clk 0:00:10.2]} 78... Ra3+ {[%clk 0:00:32.7]} 79. Ke4
{[%clk 0:00:10.8]} 79... Ra4+ {[%clk 0:00:32.9]} 80. Ke5 {[%clk 0:00:11.4]}
80... Ra5+ {[%clk 0:00:32.5]} 81. Ke6 {[%clk 0:00:12]} 81... Ra6+ {[%clk
0:00:30.9]} 82. Kd5 {[%clk 0:00:12]} 82... Ra5+ {[%clk 0:00:30.4]} 83. Ke4
{[%clk 0:00:12.5]} 83... Ra4+ {[%clk 0:00:27]} 1/2-1/2

[Event "Early-Titled-Tuesday-Blitz-June-18-2024"]
[Site "Chess.com"]
[Date "2024.06.18"]
[Round "4"]
[White "Zurability"]
[Black "Orest_Vovk"]
[Result "1-0"]
[WhiteElo "2790"]
[BlackElo "2563"]
[TimeControl "180+1"]
[EndTime "8:42:44 PDT"]
[Termination "Zurability won by resignation"]

1. e4 {[%clk 0:03:00.9]} 1... Nc6 {[%clk 0:02:58]} 2. Nf3 {[%clk 0:02:57.7]}
2... d5 {[%clk 0:02:58]} 3. exd5 {[%clk 0:02:57.6]} 3... Qxd5 {[%clk 0:02:58.9]}
4. Nc3 {[%clk 0:02:57.9]} 4... Qa5 {[%clk 0:02:59.6]} 5. h3 {[%clk 0:02:56.3]}
5... g5 {[%clk 0:02:58.7]} 6. Bc4 {[%clk 0:02:53.7]} 6... g4 {[%clk 0:02:58.6]}
7. hxg4 {[%clk 0:02:45.5]} 7... Bxg4 {[%clk 0:02:59.5]} 8. Bb5 {[%clk
0:02:31.9]} 8... O-O-O {[%clk 0:02:56]} 9. Bxc6 {[%clk 0:02:30.7]} 9... bxc6
{[%clk 0:02:56.9]} 10. d3 {[%clk 0:02:28.6]} 10... Qf5 {[%clk 0:02:53.2]} 11.
Be3 {[%clk 0:02:26.3]} 11... Bxf3 {[%clk 0:02:52.7]} 12. Qxf3 {[%clk 0:02:26.4]}
12... Qxf3 {[%clk 0:02:52.8]} 13. gxf3 {[%clk 0:02:27.2]} 13... a6 {[%clk
0:02:47.7]} 14. Ke2 {[%clk 0:02:25.2]} 14... Bg7 {[%clk 0:02:47.7]} 15. Rag1
{[%clk 0:02:19.9]} 15... Bxc3 {[%clk 0:02:47.4]} 16. bxc3 {[%clk 0:02:19.6]}
16... Nf6 {[%clk 0:02:46.9]} 17. Bd4 {[%clk 0:02:14.4]} 17... e5 {[%clk
0:02:38.3]} 18. Be3 {[%clk 0:01:45]} 18... Nd5 {[%clk 0:02:34.6]} 19. c4 {[%clk
0:01:44.3]} 19... Nxe3 {[%clk 0:02:13.9]} 20. fxe3 {[%clk 0:01:44.2]} 20... Kd7
{[%clk 0:02:11.7]} 21. Kf2 {[%clk 0:01:30.2]} 21... Ke7 {[%clk 0:02:08.8]} 22.
Rh5 {[%clk 0:01:25.9]} 22... Ke6 {[%clk 0:02:02.2]} 23. Rgh1 {[%clk 0:01:23.4]}
23... Rb8 {[%clk 0:01:59.9]} 24. Ke2 {[%clk 0:01:05.9]} 24... Rb2 {[%clk
0:01:58.8]} 25. Kd2 {[%clk 0:01:06.4]} 25... Rxa2 {[%clk 0:01:52.7]} 26. Rh6+
{[%clk 0:01:06.6]} 26... f6 {[%clk 0:01:51.1]} 27. Rxh7 {[%clk 0:01:06.9]} 27...
Rxh7 {[%clk 0:01:49.4]} 28. Rxh7 {[%clk 0:01:07.8]} 28... a5 {[%clk 0:01:42.1]}
29. Rxc7 {[%clk 0:01:07.5]} 29... Kd6 {[%clk 0:01:41.9]} 30. Rf7 {[%clk
0:01:07.8]} 30... Ke6 {[%clk 0:01:42]} 31. Ra7 {[%clk 0:01:08.1]} 31... a4
{[%clk 0:01:37.2]} 32. e4 {[%clk 0:01:02.5]} 32... a3 {[%clk 0:01:35.1]} 33. c5
{[%clk 0:00:59.6]} 33... Ra1 {[%clk 0:01:33.8]} 34. Rc7 {[%clk 0:00:52.9]} 34...
a2 {[%clk 0:01:24.2]} 35. Rxc6+ {[%clk 0:00:53]} 35... Kd7 {[%clk 0:01:18.8]}
36. Ra6 {[%clk 0:00:53]} 36... Kc7 {[%clk 0:01:18.2]} 37. Kc3 {[%clk 0:00:50.4]}
37... Kb7 {[%clk 0:01:15.3]} 38. Ra5 {[%clk 0:00:49.7]} 38... Kc6 {[%clk
0:01:13]} 39. Kb2 {[%clk 0:00:36.4]} 39... Rf1 {[%clk 0:01:12.8]} 40. Kxa2
{[%clk 0:00:33.2]} 40... Rxf3 {[%clk 0:01:13]} 41. Kb3 {[%clk 0:00:33.1]} 41...
f5 {[%clk 0:01:13.5]} 42. Kc4 {[%clk 0:00:22.3]} 42... Rf2 {[%clk 0:00:57.4]}
43. c3 {[%clk 0:00:19.2]} 43... fxe4 {[%clk 0:00:37.6]} 44. dxe4 {[%clk
0:00:17.3]} 44... Re2 {[%clk 0:00:33.1]} 45. Ra6+ {[%clk 0:00:17]} 45... Kb7
{[%clk 0:00:33.6]} 46. Rb6+ {[%clk 0:00:17.3]} 46... Kc7 {[%clk 0:00:33.3]} 47.
Kd5 {[%clk 0:00:17.5]} 47... Rc2 {[%clk 0:00:33.2]} 48. Rc6+ {[%clk 0:00:16.2]}
48... Kd7 {[%clk 0:00:28.5]} 49. Rd6+ {[%clk 0:00:16]} 49... Kc7 {[%clk
0:00:28.1]} 50. Re6 {[%clk 0:00:12.7]} 50... Rxc3 {[%clk 0:00:27.5]} 51. Re7+
{[%clk 0:00:13.3]} 51... Kd8 {[%clk 0:00:25.9]} 52. Rxe5 {[%clk 0:00:14.2]}
52... Kd7 {[%clk 0:00:23.8]} 53. Rh5 {[%clk 0:00:12.6]} 53... Rd3+ {[%clk
0:00:23.6]} 54. Ke5 {[%clk 0:00:13]} 54... Kc6 {[%clk 0:00:22.9]} 55. Ke6 {[%clk
0:00:11.5]} 55... Rd8 {[%clk 0:00:22.3]} 56. Rd5 {[%clk 0:00:08.9]} 56... Re8+
{[%clk 0:00:19.8]} 57. Kf5 {[%clk 0:00:08.5]} 57... Rf8+ {[%clk 0:00:20.5]} 58.
Ke5 {[%clk 0:00:08.5]} 58... Rh8 {[%clk 0:00:17.4]} 59. Kd4 {[%clk 0:00:08.8]}
59... Rh6 {[%clk 0:00:13.3]} 60. Rf5 {[%clk 0:00:07.6]} 60... Rg6 {[%clk
0:00:12.1]} 61. Rf8 {[%clk 0:00:06.3]} 61... Rh6 {[%clk 0:00:07.9]} 62. Rb8
{[%clk 0:00:03.4]} 62... Kc7 {[%clk 0:00:07.9]} 63. Rb6 {[%clk 0:00:02.7]} 63...
Rh1 {[%clk 0:00:08]} 64. Ra6 {[%clk 0:00:01.8]} 64... Rd1+ {[%clk 0:00:08.7]}
65. Ke5 {[%clk 0:00:01.9]} 65... Kb7 {[%clk 0:00:09.6]} 66. Rd6 {[%clk
0:00:01.9]} 66... Rc1 {[%clk 0:00:09.2]} 67. Rd5 {[%clk 0:00:02.2]} 67... Kc6
{[%clk 0:00:09.7]} 68. Kf6 {[%clk 0:00:02.2]} 68... Rf1+ {[%clk 0:00:09.1]} 69.
Rf5 {[%clk 0:00:02.7]} 69... Rh1 {[%clk 0:00:08]} 70. e5 {[%clk 0:00:03.1]}
70... Rh6+ {[%clk 0:00:08.6]} 71. Kg7 {[%clk 0:00:03.1]} 71... Rh1 {[%clk
0:00:04.8]} 72. e6 {[%clk 0:00:02.8]} 72... Re1 {[%clk 0:00:04.5]} 73. Kf7
{[%clk 0:00:03.2]} 73... Rh1 {[%clk 0:00:04.4]} 74. e7 {[%clk 0:00:03.5]} 74...
Rf1 {[%clk 0:00:05.1]} 75. Rxf1 {[%clk 0:00:03.4]} 1-0

[Event "Early-Titled-Tuesday-Blitz-June-18-2024"]
[Site "Chess.com"]
[Date "2024.06.18"]
[Round "4"]
[White "Ash15K"]
[Black "WiktoriaPOL"]
[Result "0-1"]
[WhiteElo "2298"]
[BlackElo "2408"]
[TimeControl "180+1"]
[EndTime "8:42:44 PDT"]
[Termination "WiktoriaPOL won by checkmate"]

1. e4 {[%clk 0:03:00.4]} 1... c5 {[%clk 0:02:59.6]} 2. c3 {[%clk 0:03:00.1]}
2... d5 {[%clk 0:02:57.7]} 3. exd5 {[%clk 0:02:58.3]} 3... Qxd5 {[%clk
0:02:58.4]} 4. d4 {[%clk 0:02:58.6]} 4... Nc6 {[%clk 0:02:58.6]} 5. Nf3 {[%clk
0:02:57.9]} 5... Bg4 {[%clk 0:02:53.8]} 6. Be2 {[%clk 0:02:54.3]} 6... cxd4
{[%clk 0:02:52.8]} 7. cxd4 {[%clk 0:02:53]} 7... e6 {[%clk 0:02:53]} 8. h3
{[%clk 0:02:52]} 8... Bxf3 {[%clk 0:02:43.5]} 9. Bxf3 {[%clk 0:02:51.9]} 9...
Bb4+ {[%clk 0:02:43.4]} 10. Nc3 {[%clk 0:02:49.1]} 10... Qc4 {[%clk 0:02:43.1]}
11. d5 {[%clk 0:02:11.8]} 11... Bxc3+ {[%clk 0:02:35.2]} 12. bxc3 {[%clk
0:02:11.7]} 12... Qxc3+ {[%clk 0:02:35.6]} 13. Bd2 {[%clk 0:02:11.7]} 13... Qe5+
{[%clk 0:02:35.7]} 14. Kf1 {[%clk 0:02:09.9]} 14... exd5 {[%clk 0:02:35]} 15.
Rb1 {[%clk 0:01:50]} 15... Nge7 {[%clk 0:02:11.2]} 16. Rxb7 {[%clk 0:01:40.1]}
16... O-O {[%clk 0:02:11.1]} 17. g3 {[%clk 0:01:32.2]} 17... Qd4 {[%clk
0:01:53]} 18. Kg2 {[%clk 0:01:25.6]} 18... Rfb8 {[%clk 0:01:45]} 19. Rd7 {[%clk
0:01:16]} 19... Rb2 {[%clk 0:01:40.2]} 20. Be1 {[%clk 0:00:48.9]} 20... Qxd1
{[%clk 0:01:20.9]} 21. Bxd1 {[%clk 0:00:49.8]} 21... Rxa2 {[%clk 0:01:14.1]} 22.
Bb3 {[%clk 0:00:48.4]} 22... Rb2 {[%clk 0:01:04.8]} 23. Bxd5 {[%clk 0:00:44.2]}
23... Nxd5 {[%clk 0:00:51.4]} 24. Rxd5 {[%clk 0:00:45.1]} 24... a5 {[%clk
0:00:50.6]} 25. Rc5 {[%clk 0:00:37.7]} 25... Nb4 {[%clk 0:00:42.7]} 26. Bc3
{[%clk 0:00:31]} 26... Nd3 {[%clk 0:00:14.8]} 27. Rf5 {[%clk 0:00:22.8]} 27...
Rc2 {[%clk 0:00:10.5]} 28. Bd4 {[%clk 0:00:18.7]} 28... a4 {[%clk 0:00:09.2]}
29. Ra1 {[%clk 0:00:16.3]} 29... a3 {[%clk 0:00:08.5]} 30. Rb5 {[%clk
0:00:15.2]} 30... a2 {[%clk 0:00:07.9]} 31. Kf3 {[%clk 0:00:11.8]} 31... h6
{[%clk 0:00:03.4]} 32. Rb3 {[%clk 0:00:09]} 32... Nc5 {[%clk 0:00:02.2]} 33. Rb5
{[%clk 0:00:09.1]} 33... Ne6 {[%clk 0:00:01.9]} 34. Be3 {[%clk 0:00:08.7]} 34...
Ra3 {[%clk 0:00:02.1]} 35. Rb8+ {[%clk 0:00:08.6]} 35... Kh7 {[%clk 0:00:01.6]}
36. Rb7 {[%clk 0:00:09.1]} 36... Rcc3 {[%clk 0:00:01.9]} 37. Rxf7 {[%clk
0:00:08.4]} 37... Rcb3 {[%clk 0:00:02.4]} 38. Rd7 {[%clk 0:00:08.2]} 38... Rb1
{[%clk 0:00:02.5]} 39. Rd1 {[%clk 0:00:08.9]} 39... Rxd1 {[%clk 0:00:02.9]} 40.
Rxd1 {[%clk 0:00:09.6]} 40... a1=Q {[%clk 0:00:03.2]} 41. Rxa1 {[%clk
0:00:10.3]} 41... Rxa1 {[%clk 0:00:04]} 42. Ke4 {[%clk 0:00:10.7]} 42... Ra4+
{[%clk 0:00:04.3]} 43. Kf3 {[%clk 0:00:11.1]} 43... Ng5+ {[%clk 0:00:04.6]} 44.
Kg2 {[%clk 0:00:11.7]} 44... Ne6 {[%clk 0:00:04.5]} 45. Kf3 {[%clk 0:00:11.3]}
45... g5 {[%clk 0:00:04.9]} 46. g4 {[%clk 0:00:11.1]} 46... Kg6 {[%clk
0:00:05.1]} 47. Kg3 {[%clk 0:00:11.6]} 47... Nd4 {[%clk 0:00:05.3]} 48. Kg2
{[%clk 0:00:11.4]} 48... Ne6 {[%clk 0:00:05.1]} 49. Kg3 {[%clk 0:00:11.3]} 49...
Nf4 {[%clk 0:00:05.5]} 50. Kh2 {[%clk 0:00:09.4]} 50... Ra1 {[%clk 0:00:04]} 51.
Bd4 {[%clk 0:00:07.4]} 51... Ra2 {[%clk 0:00:03.3]} 52. Be3 {[%clk 0:00:05.2]}
52... Kf6 {[%clk 0:00:03.1]} 53. Kg3 {[%clk 0:00:04.7]} 53... Ke5 {[%clk
0:00:03.2]} 54. h4 {[%clk 0:00:01.7]} 54... Ke4 {[%clk 0:00:02.8]} 55. hxg5
{[%clk 0:00:01.4]} 55... hxg5 {[%clk 0:00:03.7]} 56. Kh2 {[%clk 0:00:01.4]}
56... Nd5 {[%clk 0:00:02.2]} 57. Bb6 {[%clk 0:00:01.1]} 57... Nf4 {[%clk
0:00:01.9]} 58. Bc5 {[%clk 0:00:01.4]} 58... Nd3 {[%clk 0:00:02.6]} 59. Be3
{[%clk 0:00:01.4]} 59... Nxf2 {[%clk 0:00:03]} 60. Bxg5 {[%clk 0:00:02]} 60...
Nxg4+ {[%clk 0:00:03.1]} 61. Kg3 {[%clk 0:00:02.7]} 61... Ne5 {[%clk 0:00:03.8]}
62. Kh4 {[%clk 0:00:03.1]} 62... Nf3+ {[%clk 0:00:03.6]} 63. Kh5 {[%clk
0:00:03.3]} 63... Nxg5 {[%clk 0:00:04.5]} 64. Kxg5 {[%clk 0:00:04.2]} 64... Ra5+
{[%clk 0:00:04.1]} 65. Kg4 {[%clk 0:00:04.7]} 65... Ra8 {[%clk 0:00:03.9]} 66.
Kg5 {[%clk 0:00:05.1]} 66... Rf8 {[%clk 0:00:03.8]} 67. Kg6 {[%clk 0:00:05.5]}
67... Ke5 {[%clk 0:00:04]} 68. Kg7 {[%clk 0:00:05.7]} 68... Rf1 {[%clk 0:00:04]}
69. Kh8 {[%clk 0:00:06.1]} 69... Rg1 {[%clk 0:00:03.7]} 70. Kh7 {[%clk
0:00:06.7]} 70... Kf6 {[%clk 0:00:04.1]} 71. Kh6 {[%clk 0:00:07.6]} 71... Rh1#
{[%clk 0:00:04.2]} 0-1